fUSD/lending_fUSD_20260406
["ID","MTS","AMOUNT","RATE_DAILY","PERIOD"]
[419892480,1775479834957,-166.66666668,0.00010754,2]
[419892481,1775479834967,-249.29,0.00010837,2]
[419892482,1775479834977,-200.0,0.00010837,2]
[419892483,1775479834987,-1200.0,0.00010868,2]
[419892484,1775479834998,-1399.09,0.00010869,2]
[419892485,1775479835007,-281.87,0.00010916,2]
[419892486,1775479835018,-162.42,0.0001117,2]
[419892487,1775479835028,-150.0,0.00011203,2]
[419892488,1775479835038,-166.66666666,0.00011288,2]
[419892489,1775479835048,-722.0,0.00011315,2]
[419892490,1775479835058,-1000.0,0.00011316,2]
[419892491,1775479835069,-150.0,0.00011316,2]
[419892492,1775479835078,-161.94,0.00011317,2]
[419892493,1775479835088,-1980.81541866,0.00011317,2]
[419892498,1775479838488,-483.52326029,0.00011317,2]
[419892499,1775479838540,-695.625,0.00011317,2]
[419892500,1775479838701,-6840.02632105,0.00011317,2]
[419892501,1775479838711,-999.99,0.00011317,2]
[419892502,1775479838722,-9531.12,0.00011317,2]
[419892503,1775479838731,-150.99,0.00011317,2]
[419892504,1775479838741,-9999.99,0.00011317,2]
[419892505,1775479838751,-1209.51,0.0001139,2]
[419892506,1775479838760,-1209.06,0.0001141,2]
[419892507,1775479838770,-1217.53,0.00011507,2]
[419892508,1775479838779,-368.6739728,0.00011513,2]
[419892509,1775479838789,-185.0,0.00011604,2]
[419892510,1775479838798,-700.0,0.000117,4]
[419892511,1775479838808,-1500.0,0.000118,4]
[419892512,1775479838817,-166.66666666,0.00011822,2]
[419892513,1775479838827,-1924.0899,0.0001189,2]
[419892514,1775479838836,-2300.0,0.000119,4]
[419892515,1775479838846,-3765.18424339,0.00011912,2]
[419892516,1775479838855,-634.23081963,0.00011922,2]
[419892517,1775479838864,-1069.49567053,0.00011922,2]
[419892518,1775479838874,-500.0,0.00011922,2]
[419892519,1775479838885,-500.0,0.00011922,2]
[419892520,1775479838895,-500.0,0.00011922,2]
[419892521,1775479838905,-500.0,0.00011922,2]
[419892522,1775479838914,-500.0,0.00011922,2]
[419892523,1775479838924,-500.0,0.00011922,2]
[419892524,1775479838935,-500.0,0.00011922,2]
[419892525,1775479838946,-500.0,0.00011922,2]
[419892526,1775479838956,-500.0,0.00011922,2]
[419892527,1775479838966,-500.0,0.00011922,2]
[419892528,1775479838975,-500.0,0.00011922,2]
[419892529,1775479838985,-500.0,0.00011922,2]
[419892530,1775479838994,-500.0,0.00011922,2]
[419892531,1775479839004,-500.0,0.00011922,2]
[419892532,1775479839013,-500.0,0.00011922,2]
[419892534,1775479839022,-500.0,0.00011922,2]
[419892536,1775479839032,-500.0,0.00011922,2]
[419892538,1775479839041,-332.55093908,0.00011922,2]
[419892540,1775479839050,-500.0,0.00011922,2]
[419892542,1775479839060,-500.0,0.00011922,2]
[419892544,1775479839069,-500.0,0.00011922,2]
[419892546,1775479839078,-500.0,0.00011922,2]
[419892548,1775479839087,-354.76156944,0.00011922,2]
[419892550,1775479839096,-1680.0,0.00011955,2]
[419892552,1775479839105,-272.3129,0.00011997,2]
[419892554,1775479839115,-1207.4272,0.00011997,2]
[419892556,1775479839125,-10468.24691482,0.00011997,2]
[419892558,1775479839134,-500.0,0.00012094,2]
[419892560,1775479839144,-864.8342,0.00012096,2]
[419892562,1775479839153,-2398.14153169,0.00012096,2]
[419892564,1775479839163,-1824.4793,0.00012097,2]
[419892566,1775479839173,-398.1497,0.00012097,2]
[419892568,1775479839183,-250.842213,0.00012098,2]
[419892570,1775479839191,-150.0,0.000121,2]
[419892572,1775479839201,-182.74938164,0.00012105,2]
[419892574,1775479839210,-500.0,0.00012173,2]
[419892576,1775479839219,-500.68172956,0.00012173,2]
[419892578,1775479839229,-500.0,0.00012173,2]
[419892580,1775479839238,-500.0,0.00012173,2]
[419892582,1775479839248,-500.0,0.00012173,2]
[419892584,1775479839258,-500.0,0.00012173,2]
[419892586,1775479839267,-500.0,0.00012173,2]
[419892588,1775479839276,-204.26825693,0.00012173,2]
[419892590,1775479839286,-500.0,0.00012173,2]
[419892592,1775479839296,-194.18662976,0.00012187,2]
[419892594,1775479839305,-500.0,0.00012189,2]
[419892596,1775479839316,-500.0,0.00012189,2]
[419892598,1775479839325,-500.0,0.00012189,2]
[419892600,1775479839335,-500.0,0.00012189,2]
[419892602,1775479839344,-500.0,0.00012189,2]
[419892604,1775479839353,-500.0,0.00012189,2]
[419892606,1775479839363,-500.0,0.00012189,2]
[419892608,1775479839373,-200.0,0.00012189,2]
[419892610,1775479839382,-500.0,0.00012189,2]
[419892612,1775479839391,-500.0,0.00012189,2]
[419892614,1775479839401,-500.0,0.00012189,2]
[419892616,1775479839410,-500.0,0.00012189,2]
[419892618,1775479839420,-151.0,0.00012189,2]
[419892620,1775479839430,-500.0,0.00012189,2]
[419892622,1775479839440,-151.0,0.00012189,2]
[419892624,1775479839450,-151.0,0.00012189,2]
[419892626,1775479839459,-151.0,0.00012189,2]
[419892628,1775479839468,-151.0,0.00012189,2]
[419892630,1775479839477,-151.0,0.00012189,2]
[419892632,1775479839486,-500.0,0.00012189,2]
[419892634,1775479839495,-151.0,0.00012189,2]
[419892636,1775479839505,-500.0,0.00012189,2]
[419892638,1775479839514,-151.0,0.00012189,2]
[419892640,1775479839523,-500.0,0.00012189,2]
[419892642,1775479839533,-151.0,0.00012189,2]
[419892644,1775479839542,-500.0,0.00012189,2]
[419892646,1775479839551,-151.0,0.00012189,2]
[419892648,1775479839560,-500.0,0.00012189,2]
[419892649,1775479839571,-151.0,0.00012189,2]
[419892650,1775479839580,-574.08160509,0.00012189,2]
[419892651,1775479839590,-151.0,0.00012189,2]
[419892652,1775479839600,-151.0,0.00012189,2]
[419892653,1775479839610,-151.0,0.00012189,2]
[419892654,1775479839619,-151.0,0.00012189,2]
[419892655,1775479839629,-151.0,0.00012189,2]
[419892656,1775479839639,-151.0,0.00012194,2]
[419892657,1775479839649,-151.0,0.00012194,2]
[419892658,1775479839659,-151.0,0.00012194,2]
[419892659,1775479839671,-151.0,0.00012194,2]
[419892660,1775479839681,-17540.60164988,0.00012194,2]
[419892661,1775479839693,-155.0,0.00012196,2]
[419892662,1775479839704,-800.15,0.00012196,2]
[419892663,1775479839715,-1255970.37989669,0.00012197,2]
[419892664,1775479839735,-346.8,0.00012197,2]
[419892758,1775479840700,-5088.6456626,0.00012197,2]
[419892775,1775479840860,-238594.17444071,0.00012197,2]
[419892777,1775479840870,-151.0,0.00012294,2]
[419892779,1775479840880,-1000.0,0.00012297,2]
[419892781,1775479840889,-578.20924308,0.00012326,2]
[419892783,1775479840899,-200.0,0.00012326,2]
[419892785,1775479840909,-1377.42282659,0.00012326,2]
[419892787,1775479840919,-3283.41717271,0.00012326,2]
[419892789,1775479840929,-500.0,0.00012326,2]
[419892791,1775479840939,-500.0,0.00012326,2]
[419892793,1775479840949,-500.0,0.00012326,2]
[419892795,1775479840959,-500.0,0.00012326,2]
[419892797,1775479840968,-500.0,0.00012326,2]
[419892800,1775479840979,-500.0,0.00012326,2]
[419892802,1775479840989,-500.0,0.00012326,2]
[419892804,1775479840998,-500.0,0.00012326,2]
[419892806,1775479841007,-500.0,0.00012326,2]
[419892808,1775479841017,-500.0,0.00012326,2]
[419892810,1775479841027,-500.0,0.00012326,2]
[419892812,1775479841036,-500.0,0.00012326,2]
[419892814,1775479841046,-500.0,0.00012326,2]
[419892815,1775479841055,-695.39793187,0.00012326,2]
[419892817,1775479841065,-3000.0,0.00012326,2]
[419892819,1775479841075,-3000.0,0.00012326,2]
[419892822,1775479841085,-3000.0,0.00012326,2]
[419892824,1775479841095,-3000.0,0.00012326,2]
[419892826,1775479841104,-3000.0,0.00012326,2]
[419892828,1775479841114,-1627.46733313,0.00012326,2]
[419892830,1775479841123,-151.0,0.00012326,2]
[419892832,1775479841133,-174.61919141,0.00012326,2]
[419892834,1775479841143,-255.0,0.00012368,2]
[419892836,1775479841154,-500.0,0.00012381,2]
[419892838,1775479841164,-151.0,0.00012381,2]
[419892840,1775479841174,-10468.24691476,0.00012431,2]
[419892842,1775479841184,-500.0,0.00012436,2]
[419892844,1775479841193,-151.0,0.00012436,2]
[419892846,1775479841202,-800.15,0.0001247,2]
[419892848,1775479841212,-500.0,0.00012491,2]
[419892850,1775479841222,-151.0,0.00012491,2]
[419892852,1775479841232,-155.0,0.00012501,2]
[419892854,1775479841241,-500.0,0.00012546,2]
[419892856,1775479841250,-151.0,0.00012546,2]
[419892857,1775479841260,-150.0,0.00012566,2]
[419892859,1775479841270,-500.0,0.00012601,2]
[419892861,1775479841279,-17540.60164983,0.00012606,2]
[419892862,1775479841290,-2398.14153165,0.00012639,2]
[419892863,1775479841299,-500.0,0.00012656,2]
[419892864,1775479841309,-500.0,0.00012711,2]
[419892865,1775479841319,-168.0,0.00012717,2]
[419892866,1775479841329,-1000.0,0.00012721,2]
[419892867,1775479841339,-1000.0,0.00012721,2]
[419892868,1775479841349,-1044.24672784,0.00012721,2]
[419892869,1775479841360,-659.22316949,0.00012721,2]
[419892870,1775479841370,-250.84221298,0.00012732,2]
[419892871,1775479841380,-161.94,0.00012732,2]
[419892872,1775479841390,-200.0,0.00012737,2]
[419892873,1775479841400,-800.15,0.00012744,2]
[419892874,1775479841411,-500.0,0.00012766,2]
[419892875,1775479841421,-155.0,0.00012806,2]
[419892876,1775479841430,-500.0,0.00012821,2]
[419892877,1775479841440,-10468.24691476,0.00012864,2]
[419892878,1775479841450,-200.0,0.00012874,2]
[419892879,1775479841460,-1428.38747117,0.00012874,2]
[419892880,1775479841469,-181.08010149,0.00012874,2]
[419892881,1775479841479,-500.0,0.00012876,2]
[419892882,1775479841489,-250.0,0.00012882,2]
[419892883,1775479841499,-168.0,0.00012915,2]
[419892884,1775479841508,-500.0,0.00012931,2]
[419892885,1775479841519,-305.416641,0.00012946,2]
[419892886,1775479841528,-250.324436,0.00012946,2]
[419892887,1775479841539,-5988.33653102,0.00013,7]
[419892888,1775479841548,-250.0,0.00013,2]
[419892889,1775479841558,-4558.796,0.00013001,2]
[419892890,1775479841568,-227.116,0.00013001,2]
[419892891,1775479841578,-17540.60164983,0.00013018,2]
[419892892,1775479841588,-800.15,0.00013018,2]
[419892893,1775479841598,-168.0,0.00013033,2]
[419892894,1775479841608,-1902.0,0.00013034,5]
[419892895,1775479841617,-1522.0,0.00013034,5]
[419892896,1775479841627,-350.0,0.00013052,2]
[419892897,1775479841637,-168.0,0.0001307,2]
[419892898,1775479841649,-2000.0,0.00013081,2]
[419892899,1775479841659,-194.191077,0.00013097,2]
[419892900,1775479841670,-216.345213,0.00013097,2]
[419892901,1775479841680,-243.284176,0.00013097,2]
[419892902,1775479841691,-449.293203,0.00013097,2]
[419892903,1775479841701,-501.0,0.000131,2]
[419892904,1775479841712,-155.0,0.00013111,2]
[419892905,1775479841722,-168.0,0.00013118,2]
[419892906,1775479841732,-160.0,0.00013132,2]
[419892907,1775479841743,-273.115312,0.00013132,2]
[419892908,1775479841753,-386.230624,0.00013132,2]
[419892909,1775479841762,-1500.0,0.00013143,2]
[419892910,1775479841773,-3000.0,0.00013143,2]
[419892911,1775479841782,-152.0,0.00013145,3]
[419892912,1775479841793,-2351.0,0.0001315,2]
[419892913,1775479841803,-188.729542,0.00013157,2]
[419892914,1775479841813,-2398.14153165,0.00013183,2]
[419892915,1775479841822,-150.0,0.00013204,2]
[419892916,1775479841832,-7513.44669462,0.0001321,2]
[419892918,1775479841842,-350.0,0.00013256,2]
[419892920,1775479841852,-1500.0,0.00013268,2]
[419892922,1775479841863,-1500.0,0.00013268,2]
[419892923,1775479841874,-200.0,0.00013285,2]
[419892924,1775479841883,-800.15,0.00013292,2]
[419892925,1775479841893,-10468.24691476,0.00013298,2]
[419892926,1775479841903,-168.0,0.00013332,2]
[419892927,1775479841914,-151.0,0.00013365,2]
[419892928,1775479841924,-151.0,0.00013365,2]
[419892929,1775479841936,-250.84221298,0.00013365,2]
[419892930,1775479841946,-168.0,0.00013399,2]
[419892931,1775479841955,-167.2247,0.000134,2]
[419892932,1775479841964,-306.0,0.000134,2]
[419892933,1775479841974,-1000.0,0.000134,2]
[419892934,1775479841984,-313.0,0.000134,2]
[419892935,1775479841994,-155.0,0.00013416,2]
[419892936,1775479842004,-150.0,0.00013416,2]
[419892937,1775479842014,-150.0,0.00013416,2]
[419892938,1775479842025,-181.35862253,0.00013416,2]
[419892939,1775479842035,-621.0,0.0001342,2]
[419892940,1775479842045,-200.0,0.00013422,2]
[419892941,1775479842055,-1481.23780761,0.00013422,2]
[419892942,1775479842066,-187.78006525,0.00013422,2]
[419892943,1775479842076,-3240.0,0.00013425,2]
[419892944,1775479842087,-2114.47417512,0.00013425,2]
[419892945,1775479842101,-17540.60164983,0.00013429,2]
[419892946,1775479842111,-590.0,0.00013507,2]
[419892947,1775479842122,-500.0,0.00013507,2]
[419892948,1775479842131,-433.0,0.00013523,2]
[419892949,1775479842141,-2000.0,0.0001356,2]
[419892950,1775479842151,-2000.0,0.0001356,2]
[419892951,1775479842163,-160.0,0.00013566,2]
[419892952,1775479842173,-800.2,0.00013566,2]
[419892953,1775479842184,-2000.0,0.0001358,2]
[419892954,1775479842194,-200.0,0.00013589,2]
[419892955,1775479842204,-168.0,0.0001359,2]
[419892956,1775479842214,-235.82404506,0.00013599,2]
[419892957,1775479842223,-3878.8871571,0.00013627,2]
[419892958,1775479842232,-621.0,0.00013652,2]
[419892959,1775479842242,-350.0,0.00013668,2]
[419892960,1775479842252,-194.24971248,0.00013687,2]
[419892961,1775479842262,-500.0,0.00013699,2]
[419892962,1775479842273,-500.0,0.00013699,2]
[419892963,1775479842282,-500.0,0.00013699,2]
[419892964,1775479842292,-150.0,0.00013699,2]
[419892965,1775479842302,-150.0,0.00013699,2]
[419892966,1775479842312,-150.0,0.00013699,2]
[419892967,1775479842321,-150.0,0.00013699,2]
[419892968,1775479842331,-228.437311,0.00013699,2]
[419892969,1775479842341,-228.437311,0.00013699,2]
[419892970,1775479842352,-151.0,0.00013699,2]
[419892971,1775479842362,-228.437311,0.00013699,2]
[419892972,1775479842372,-151.0,0.00013699,2]
[419892973,1775479842382,-228.437311,0.00013699,2]
[419892974,1775479842392,-151.0,0.00013699,2]
[419892975,1775479842402,-313.583254,0.00013699,2]
[419892976,1775479842412,-200.0,0.00013699,2]
[419892977,1775479842421,-151.0,0.00013699,2]
[419892978,1775479842430,-151.0,0.00013699,2]
[419892979,1775479842440,-192.264196,0.00013699,2]
[419892980,1775479842449,-313.583254,0.00013699,2]
[419892981,1775479842459,-153.6,0.00013699,2]
[419892982,1775479842469,-192.264196,0.00013699,2]
[419892983,1775479842478,-161.633852,0.00013699,2]
[419892984,1775479842487,-201.585648,0.00013699,2]
[419892985,1775479842496,-344.879332,0.00013699,2]
[419892986,1775479842506,-313.583254,0.00013699,2]
[419892987,1775479842515,-153.6,0.00013699,2]
[419892988,1775479842525,-192.264196,0.00013699,2]
[419892989,1775479842535,-201.585648,0.00013699,2]
[419892990,1775479842544,-344.879332,0.00013699,2]
[419892991,1775479842555,-313.583254,0.00013699,2]
[419892992,1775479842564,-151.0,0.00013699,2]
[419892993,1775479842573,-153.6,0.00013699,2]
[419892994,1775479842583,-201.585648,0.00013699,2]
[419892995,1775479842595,-344.879332,0.00013699,2]
[419892996,1775479842607,-192.264196,0.00013699,2]
[419892997,1775479842617,-153.6,0.00013699,2]
[419892998,1775479842627,-910.314917,0.00013699,2]
[419892999,1775479842636,-201.585648,0.00013699,2]
[419893000,1775479842647,-344.879332,0.00013699,2]
[419893001,1775479842659,-910.314917,0.00013699,2]
[419893002,1775479842670,-910.314917,0.00013699,2]
[419893003,1775479842681,-345.475972,0.00013699,2]
[419893004,1775479842692,-718.21705996,0.00013699,2]
[419893034,1775479845246,-500.0,0.00012195,2]
[419893035,1775479845256,-19.24985727,0.00012195,2]
[419893061,1775479847151,-480.75014273,0.00012195,2]
[419893062,1775479847160,-500.0,0.00012195,2]
[419893063,1775479847170,-2042.77110267,0.00012195,2]
[419893064,1775479847183,-272.81568265,0.00012195,2]
[419893065,1775479847193,-500.0,0.00012195,2]
[419893066,1775479847205,-500.0,0.00012195,2]
[419893067,1775479847216,-500.0,0.00012195,2]
[419893068,1775479847226,-500.0,0.00012195,2]
[419893069,1775479847235,-1197.4332173,0.00012195,2]
[419893070,1775479847252,-1118.15356802,0.00012195,2]
[419893071,1775479847262,-500.0,0.00012195,2]
[419893072,1775479847272,-500.0,0.00012195,2]
[419893073,1775479847281,-500.0,0.00012195,2]
[419893074,1775479847292,-500.0,0.00012195,2]
[419893075,1775479847301,-983.44643193,0.00012195,2]
[419893076,1775479847313,-1332.14035339,0.00012195,2]
[419893077,1775479847323,-483.36103957,0.00012195,2]
[419893078,1775479847333,-500.0,0.00012195,2]
[419893079,1775479847342,-2315.58678532,0.00012195,2]
[419893080,1775479847352,-500.0,0.00012195,2]
[419893081,1775479847362,-2315.58678532,0.00012195,2]
[419893082,1775479847372,-500.0,0.00012195,2]
[419893083,1775479847382,-367.94024001,0.00012195,2]
[419893084,1775479847392,-2315.58678532,0.00012195,2]
[419893085,1775479847402,-500.0,0.00012195,2]
[419893086,1775479847413,-2315.58678532,0.00012195,2]
[419893087,1775479847423,-618.93795441,0.00012195,2]
[419893088,1775479847434,-2315.58678532,0.00012195,2]
[419893089,1775479847444,-500.0,0.00012195,2]
[419893090,1775479847454,-2315.58678532,0.00012195,2]
[419893091,1775479847464,-2315.58678532,0.00012195,2]
[419893092,1775479847474,-2315.58678532,0.00012195,2]
[419893093,1775479847485,-2315.58678532,0.00012195,2]
[419893094,1775479847495,-2315.58678532,0.00012195,2]
[419893095,1775479847507,-2315.58678532,0.00012195,2]
[419893096,1775479847517,-2315.58678532,0.00012195,2]
[419893097,1775479847527,-2315.58678532,0.00012195,2]
[419893098,1775479847538,-2315.58678532,0.00012195,2]
[419893099,1775479847547,-2315.58678532,0.00012195,2]
[419893100,1775479847557,-2315.58678532,0.00012195,2]
[419893101,1775479847567,-2315.58678532,0.00012195,2]
[419893102,1775479847578,-2315.58678532,0.00012195,2]
[419893103,1775479847587,-2315.58678532,0.00012195,2]
[419893104,1775479847597,-2315.58678532,0.00012195,2]
[419893105,1775479847607,-2315.58678532,0.00012195,2]
[419893106,1775479847616,-2315.58678532,0.00012195,2]
[419893107,1775479847625,-2315.58678532,0.00012195,2]
[419893108,1775479847635,-2315.58678532,0.00012195,2]
[419893109,1775479847645,-2315.58678532,0.00012195,2]
[419893110,1775479847654,-2315.58678532,0.00012195,2]
[419893111,1775479847664,-2315.58678532,0.00012195,2]
[419893112,1775479847673,-2315.58678532,0.00012195,2]
[419893113,1775479847682,-2315.58678532,0.00012195,2]
[419893114,1775479847692,-2315.58678532,0.00012195,2]
[419893115,1775479847703,-2315.58678532,0.00012195,2]
[419893116,1775479847714,-2315.58678532,0.00012195,2]
[419893117,1775479847724,-2315.58678532,0.00012195,2]
[419893118,1775479847735,-2315.58678532,0.00012195,2]
[419893119,1775479847746,-2315.58678532,0.00012195,2]
[419893120,1775479847756,-2315.58678532,0.00012195,2]
[419893121,1775479847766,-2315.58678532,0.00012195,2]
[419893122,1775479847776,-2315.58678532,0.00012195,2]
[419893123,1775479847787,-2315.58678532,0.00012195,2]
[419893124,1775479847798,-2315.58678532,0.00012195,2]
[419893125,1775479847807,-1969.35338771,0.00012195,2]
[419893126,1775479847886,-346.23339761,0.00012195,2]
[419893127,1775479847896,-826.02787539,0.00012195,2]
[419893128,1775479847907,-354.42310879,0.00012195,2]
[419893144,1775480972189,-166.66666666,0.00010536,2]
[419893145,1775480972213,-500.0,0.000106,2]
[419893146,1775480972236,-1317.0,0.000106,5]
[419893147,1775480972260,-3478.48593643,0.00010636,2]
[419893148,1775481031510,-463.73406357,0.00010636,2]
[419893149,1775481031519,-500.0,0.00010743,2]
[419893150,1775481031529,-300.0,0.00010765,2]
[419893151,1775481031539,-1200.0,0.00010766,2]
[419893152,1775481031550,-300.0,0.00010766,2]
[419893153,1775481031560,-9359.68,0.00010767,2]
[419893154,1775481031570,-1600.0,0.00010934,2]
[419893155,1775481031581,-185.52,0.00010959,2]
[419893156,1775481031590,-150.0,0.00010959,2]
[419893157,1775481031600,-150.0,0.00011353,2]
[419893158,1775481031610,-164.46,0.00011354,2]
[419893159,1775481031619,-9999.99,0.00011354,2]
[419893160,1775481031629,-2368.63424002,0.00011354,2]
[419893165,1775481038356,-1319.83500511,0.00011354,2]
[419893166,1775481038368,-1341.93264834,0.00011354,2]
[419893167,1775481038381,-432.42290017,0.00011354,2]
[419893168,1775481038394,-4537.16520636,0.00011354,2]
[419893169,1775481038403,-372.0,0.00011365,2]
[419893170,1775481038412,-500.0,0.00011499,2]
[419893171,1775481038422,-500.0,0.00011499,2]
[419893172,1775481038432,-500.0,0.00011499,2]
[419893173,1775481038444,-500.0,0.00011499,2]
[419893174,1775481038454,-354.76156944,0.00011499,2]
[419893175,1775481038463,-2421.47706434,0.00011505,2]
[419893176,1775481038475,-16789.91646401,0.00011505,2]
[419893177,1775481038519,-2762.3276635,0.00011505,2]
[419893178,1775481038530,-500.0,0.00011526,2]
[419893179,1775481038540,-500.0,0.00011526,2]
[419893180,1775481038551,-500.0,0.00011526,2]
[419893181,1775481038560,-500.0,0.00011526,2]
[419893182,1775481038570,-500.0,0.00011526,2]
[419893183,1775481038580,-500.0,0.00011526,2]
[419893184,1775481038589,-500.0,0.00011526,2]
[419893185,1775481038598,-500.0,0.00011526,2]
[419893186,1775481038607,-500.0,0.00011526,2]
[419893187,1775481038617,-500.0,0.00011526,2]
[419893188,1775481038627,-500.0,0.00011526,2]
[419893189,1775481038637,-500.0,0.00011526,2]
[419893190,1775481038647,-500.0,0.00011526,2]
[419893191,1775481038656,-500.0,0.00011526,2]
[419893192,1775481038668,-500.0,0.00011526,2]
[419893193,1775481038678,-500.0,0.00011526,2]
[419893194,1775481038688,-500.0,0.00011526,2]
[419893195,1775481038699,-332.55093908,0.00011526,2]
[419893196,1775481038708,-313.09,0.00011547,2]
[419893197,1775481038717,-150.99,0.00011547,2]
[419893198,1775481038726,-299.99,0.00011547,2]
[419893199,1775481038736,-1069.49567053,0.00011547,2]
[419893200,1775481038745,-500.0,0.00011573,2]
[419893201,1775481038754,-500.0,0.00011573,2]
[419893202,1775481038765,-461.10773956,0.00011573,2]
[419893203,1775481038776,-304.93834689,0.00011573,2]
[419893204,1775481038785,-500.0,0.00011573,2]
[419893205,1775481038796,-501.75389505,0.00011573,2]
[419893206,1775481038805,-500.0,0.00011573,2]
[419893207,1775481038815,-500.0,0.00011573,2]
[419893208,1775481038824,-500.25334159,0.00011573,2]
[419893209,1775481038836,-500.0,0.00011573,2]
[419893210,1775481038847,-500.0,0.00011573,2]
[419893211,1775481038857,-194.18662976,0.00011589,2]
[419893212,1775481038866,-151.0,0.00011594,2]
[419893213,1775481038877,-500.0,0.00011598,2]
[419893214,1775481038887,-500.0,0.00011598,2]
[419893215,1775481038897,-500.0,0.00011598,2]
[419893216,1775481038906,-500.0,0.00011598,2]
[419893217,1775481038917,-1074.47541218,0.00011598,2]
[419893218,1775481038926,-277.12059173,0.00011598,2]
[419893219,1775481038937,-1074.47541218,0.00011598,2]
[419893220,1775481038947,-500.0,0.00011598,2]
[419893221,1775481038957,-151.99336,0.00011598,2]
[419893222,1775481038967,-1074.47541218,0.00011598,2]
[419893223,1775481038977,-500.0,0.00011598,2]
[419893224,1775481038987,-1074.47541218,0.00011598,2]
[419893225,1775481038996,-1074.47541218,0.00011598,2]
[419893226,1775481039006,-1074.47541218,0.00011598,2]
[419893227,1775481039017,-1074.47541218,0.00011598,2]
[419893228,1775481039028,-1074.47541218,0.00011598,2]
[419893229,1775481039039,-1074.47541218,0.00011598,2]
[419893230,1775481039050,-1074.47541218,0.00011598,2]
[419893231,1775481039059,-1074.47541218,0.00011598,2]
[419893232,1775481039068,-1074.47541218,0.00011598,2]
[419893233,1775481039078,-1074.47541218,0.00011598,2]
[419893234,1775481039089,-1074.47541218,0.00011598,2]
[419893235,1775481039099,-1074.47541218,0.00011598,2]
[419893236,1775481039110,-1074.47541218,0.00011598,2]
[419893237,1775481039121,-1074.47541218,0.00011598,2]
[419893238,1775481039133,-1074.47541218,0.00011598,2]
[419893239,1775481039142,-1074.47541218,0.00011598,2]
[419893240,1775481039152,-1074.47541218,0.00011598,2]
[419893241,1775481039161,-1074.47541218,0.00011598,2]
[419893242,1775481039170,-1074.47541218,0.00011598,2]
[419893243,1775481039180,-1074.47541218,0.00011598,2]
[419893244,1775481039190,-1074.47541218,0.00011598,2]
[419893245,1775481039200,-1074.47541218,0.00011598,2]
[419893246,1775481039209,-1074.47541218,0.00011598,2]
[419893247,1775481039219,-1074.47541218,0.00011598,2]
[419893248,1775481039228,-1074.47541218,0.00011598,2]
[419893249,1775481039238,-1074.47541218,0.00011598,2]
[419893250,1775481039249,-1074.47541218,0.00011598,2]
[419893251,1775481039258,-1074.47541218,0.00011598,2]
[419893252,1775481039267,-1074.47541218,0.00011598,2]
[419893253,1775481039277,-1074.47541218,0.00011598,2]
[419893254,1775481039286,-1074.47541218,0.00011598,2]
[419893255,1775481039299,-1074.47541218,0.00011598,2]
[419893256,1775481039308,-1074.47541218,0.00011598,2]
[419893258,1775481039318,-1074.47541218,0.00011598,2]
[419893260,1775481039328,-1074.47541218,0.00011598,2]
[419893261,1775481039338,-1074.47541218,0.00011598,2]
[419893262,1775481039347,-1074.47541218,0.00011598,2]
[419893263,1775481039356,-1074.47541218,0.00011598,2]
[419893264,1775481039366,-1074.47541218,0.00011598,2]
[419893265,1775481039376,-1074.47541218,0.00011598,2]
[419893266,1775481039387,-1074.47541218,0.00011598,2]
[419893267,1775481039396,-1074.47541218,0.00011598,2]
[419893268,1775481039406,-1074.47541218,0.00011598,2]
[419893269,1775481039418,-1074.47541218,0.00011598,2]
[419893270,1775481039428,-1074.47541218,0.00011598,2]
[419893271,1775481039440,-1074.47541218,0.00011598,2]